Cogmind - Beta 16.1 @@@ ROGUE MODE // 2026.04.19 @ 22:54:19 Player: FloorSandwich Result: Destroyed by Z8-OBD(R) with Subdweller Beam Cannon Performance ------------- Evolutions (0) 0 Regions Visited (2) 400 Robots Destroyed (24) 120 Value Destroyed (413) 413 Prototype IDs (2) 40 Alien Tech Used (0) 0 Bonus (0) 0 TOTAL SCORE: 973 Bonus ------- None Cogmind --------- Core Integrity 0/250 Matter 178/300 Energy 250/250 System Corruption 1% Temperature Cool (9) Movement Core (200) Ox3 Location -10/Subcaves Parts ------- > --- POWER (1) -------- Ion Engine > --- PROPULSION (2) --- (None) > --- UTILITY (2) ------ Small Storage Unit > --- WEAPON (2) ------- (None) > --- INVENTORY (8) ---- Terrain Scan Processor Peak State ------------ > --- POWER ------------ Light Ion Engine > --- PROPULSION ------- Aluminum Leg Aluminum Leg > --- UTILITY ---------- Small Storage Unit > --- WEAPON ----------- Medium Laser Small Laser > --- INVENTORY -------- Ion Engine [Rating: 6] Favorites ----------- Power Light Ion Engine Engine Light Ion Engine Propulsion Aluminum Leg Leg Aluminum Leg Utility Small Storage Unit Storage Small Storage Unit Weapon Medium Laser Energy Gun Medium Laser Ballistic Cannon Light Cannon Build | -11 -10 -10 ------- Run | Yrd Mat Sub Slots Evolved . | . . . Power . | . . . Propulsion . | . . . Utility . | . . . Weapon . | . . . Parts Attached 12 | 5 6 1 Power 2 | 1 . 1 Engine 2 | 1 . 1 Core . | . . . Reactor . | . . . Propulsion 4 | 2 2 . Treads . | . . . Leg 4 | 2 2 . Wheel . | . . . Hover . | . . . Flight . | . . . Utility 1 | . 1 . Device . | . . . Storage 1 | . 1 . Processor . | . . . Hackware . | . . . Protection . | . . . Artifact . | . . . Weapon 5 | 2 3 . Energy Gun 3 | 2 1 . Energy Cannon . | . . . Ballistic Gun . | . . . Ballistic Cannon 2 | . 2 . Launcher . | . . . Special Weapon . | . . . Impact Weapon . | . . . Slashing Weapon . | . . . Piercing Weapon . | . . . Special Melee Weapon . | . . . Unidentified Prototypes . | . . . Parts Lost 6 | . 2 4 Power . | . . . Propulsion 3 | . 1 2 Utility . | . . . Weapon 3 | . 1 2 Highest Loss Streak 3 | . 1 3 To Critical Strikes . | . . . Average Backups 1 | 1 1 1 Power . | . 1 . Propulsion . | . . . Utility . | . . 1 Weapon . | . . . Tool/Special . | . . . Unused Backups 2 | . 1 1 Power . | . . . Propulsion . | . . . Utility 1 | . . 1 Weapon 1 | . 1 . Tool/Special . | . . . Average Slot Usage (%) 77 | . 77 75 Engine 14 | . 14 14 Leg 27 | . 27 25 Storage 8 | . 7 14 Energy Gun 11 | . 14 . Ballistic Cannon 14 | . 13 21 Peak Build Rating 6 | 5 6 6 Average Rating 5 | 4 5 5 On Entrance 3 | . 5 6 Avg Prop Armor Cover (%) . | . . . Naked Turns . | . . . Heaviest Build 14 | 7 14 14 Greatest Support 20 | 20 20 20 Greatest Overweight (x) 3 | . 1 3 Average Overweight (x) . | . . . Largest Inventory Capacity 8 | 5 8 8 Average Capacity 6 | 5 6 8 Most Carried 5 | 5 3 2 Average Carried 1 | 1 1 1 Final Capacity 8 | 5 8 8 Final Carried 2 | 1 2 1 Class Distribution -------------------- 100% | Mutant Dominant Class ---------------- Mutant | -10/Materials Mutant | -10/Subcaves Resources | -11 -10 -10 ----------- Run | Yrd Mat Sub Matter Collected 415 | 250 165 . Remotely . | . . . Salvage Created 744 | 155 555 34 Parts 44 | 13 27 4 Haulers Intercepted 1 | . 1 . Recyclers Shooed 1 | . 1 . Parts Field Recycled . | . . . Retrieved Matter . | . . . Parts Self-Destructed 9 | . . 9 Prevented . | . . . Parts Restored . | . . . Kills | -11 -10 -10 ------- Run | Yrd Mat Sub Combat Hostiles Destroyed 13 | . 9 4 Guns 4 | . 4 . Cannons 8 | . 4 4 Classes Destroyed 7 | 2 4 1 Worker 6 | 4 2 . Builder 1 | . 1 . Hauler 1 | . 1 . Recycler 2 | 1 1 . Operator 1 | . 1 . Swarmer 4 | . . 4 Grunt 9 | . 9 . Best Kill Streak 7 | 2 7 4 Combat Bots Only 4 | . 2 4 Max Kills in Single Turn 2 | 1 2 1 Gunslinging . | . . . Exploded . | . . . Melee . | . . . Uniques/NPCs Destroyed . | . . . Combat | -11 -10 -10 -------- Run | Yrd Mat Sub Hostile Shots Fired 129 | . 61 68 Missed 30 | . 12 18 Hits 99 | . 49 50 Projectile 99 | . 49 50 Damage Taken 1202 | . 577 625 Core 274 | . 147 127 Absorbed by Shields . | . . . Core Remaining (%) 100 | 100 . . Volleys Fired 68 | 6 43 19 Largest 2 | 2 2 2 Hottest 100 | 100 100 60 Shots Fired 125 | 12 86 27 Gun 69 | 12 57 . Cannon 56 | . 29 27 Launcher . | . . . Special . | . . . Kinetic 56 | . 29 27 Thermal 69 | 12 57 . Explosive . | . . . Electromagnetic . | . . . Robot Hit Streak 8 | 2 7 8 Robot Miss Streak 4 | 1 4 3 Penetration Max . | . . . Secondary Targets . | . . . Shots Hit Robots 70 | 7 47 16 Core Hits 32 | 6 21 5 Critical Kills . | . . . Critical Parts Destroyed . | . . . Critical Strikes 5 | 1 3 1 Burn 3 | 1 2 . Blast 2 | . 1 1 Melee Attacks . | . . . Impact . | . . . Slashing . | . . . Piercing . | . . . Sneak Attacks . | . . . Combat Hostiles . | . . . Follow-up Attacks . | . . . Damage Inflicted 1088 | 86 720 282 Guns 492 | 86 406 . Cannons 593 | . 314 279 Explosions . | . . . Melee . | . . . Ramming 3 | . . 3 Kinetic 593 | . 314 279 Thermal 492 | 86 406 . Explosive . | . . . Electromagnetic . | . . . Impact . | . . . Slashing . | . . . Piercing . | . . . Highest Corruption 1 | . 1 1 Average Corruption 1 | . 1 1 Corruption Purged . | . . . Corruption Blocked . | . . . Effects 11 | . 11 . Message Errors 1 | . 1 . Matter Fused 3 | . 3 . Energy Discharges 3 | . 3 . Data Loss (minor) 2 | . 2 . Misfires 2 | . 2 . Overload Shots . | . . . Overflow Damage . | . . . Projectiles . | . . . Explosions . | . . . Melee . | . . . Knockbacks 6 | . 3 3 Impact . | . . . Kinetic 6 | . 3 3 Secondary . | . . . Self-Inflicted Damage 1 | . . 1 Shots . | . . . Rammed 2 | . . 2 Targets Rammed 2 | . . 2 Kicked . | . . . Crushed . | . . . Highest Temperature 488 | 81 488 10 Average Temperature 134 | 34 153 10 Received Heat Transfer 519 | . 318 201 Effects 3 | . 3 . Shutdowns 2 | . 2 . Energy Bleed 1 | . 1 . Siege Activations . | . . . Martial Activations . | . . . Shielding Activations . | . . . Robots Disrupted . | . . . Combat Hostiles . | . . . Robots Corrupted . | . . . Combat Hostiles . | . . . Parts Fried . | . . . Impact Corruptions . | . . . Robots Melted 1 | . 1 . Combat Hostiles 1 | . 1 . Parts Melted 4 | . 4 . Heat Transferred 1594 | 333 1261 . Parts Sabotaged . | . . . Parts Stolen . | . . . Parts Stripped . | . . . Power Chain Reactions . | . . . Alert | -11 -10 -10 ------- Run | Yrd Mat Sub Maximum Alert Level . | . . . Low Security (%) 100 | 100 100 . Level 1 . | . . . Level 2 . | . . . Level 3 . | . . . Level 4 . | . . . Level 5 . | . . . High Security . | . . . Max Security . | . . . Peak Influence 94 | 10 94 . Initial . | . . . Average 11 | . 21 . Influence Increases 472 | 25 277 170 Destroy 0b10 Robot/C 260 | . 180 80 Destroy 0b10 Robot/NC 55 | 25 30 . Destroy Leader 42 | . 42 . Successful Hack 24 | . 24 . Destroy Structure 1 | . 1 . Lose Combat Pursuer 90 | . . 90 Influence Decreases 392 | 25 277 90 Time Decay 332 | 25 257 50 Lost Part 60 | . 20 40 Squads Dispatched 3 | . 3 . Investigation 2 | . 2 . Extermination . | . . . Reinforcement 1 | . 1 . Assault . | . . . Garrison . | . . . Intercept . | . . . Searches Triggered . | . . . Construction Impeded . | . . . Haulers Reinforced . | . . . Active Scanning Responses . | . . . Cargo Convoy Interrupts . | . . . Stealth | -11 -10 -10 --------- Run | Yrd Mat Sub Distress Signals . | . . . Communications Jammed . | . . . Distress Signals . | . . . Times Spotted 19 | . 10 9 Peak Tracking Total 6 | . 2 6 Tactical Retreats 2 | . . 2 Traps | -11 -10 -10 ------- Run | Yrd Mat Sub Traps Triggered . | . . . Indirectly . | . . . Trap Hack Attempts . | . . . Triggered . | . . . Disarmed . | . . . Reprogrammed . | . . . Reused . | . . . Traps Extracted . | . . . Installed . | . . . Triggered . | . . . Machines | -11 -10 -10 ---------- Run | Yrd Mat Sub Machines Disabled 2 | . 1 1 Max in Single Turn 1 | . 1 1 Machines Repaired . | . . . Machines Dismantled . | . . . Machines Sabotaged . | . . . Overloaded Fab Kills . | . . . Hacking | -11 -10 -10 --------- Run | Yrd Mat Sub Machines Accessed 4 | . 4 . Terminals 4 | . 4 . Fabricators . | . . . Repair Stations . | . . . Recycling Units . | . . . Scanalyzers . | . . . Garrison Access . | . . . Total Hacks 11 | . 11 . Successful 6 | . 6 . Failed 5 | . 5 . Catastrophic . | . . . Database Lockouts . | . . . Manual . | . . . Terminals 11 | . 11 . Fabricators . | . . . Repair Stations . | . . . Recycling Units . | . . . Scanalyzers . | . . . Garrison Access . | . . . Terminal Hacks 6 | . 6 . Prototype ID Bank 1 | . 1 . Dispatch Records 1 | . 1 . Reinforcement Status 1 | . 1 . Hauler Manifests 1 | . 1 . Zone Layout 2 | . 2 . Fabricator Hacks . | . . . Repair Station Hacks . | . . . Recycling Unit Hacks . | . . . Scanalyzer . | . . . Garrison Access Hacks . | . . . Unauthorized Hacks . | . . . Terminals . | . . . Fabricators . | . . . Repair Stations . | . . . Recycling Units . | . . . Scanalyzers . | . . . Garrison Access . | . . . Data Cores Recovered . | . . . Used . | . . . Hacking Detections 4 | . 4 . Full Trace Events 3 | . 3 . Feedback Events 1 | . 1 . Corruption 1 | . 1 . Feedback Blocked . | . . . Robot Schematics Acquired . | . . . Robots Built . | . . . Authchips . | . . . Time . | . . . Total Robot Build Rating . | . . . Part Schematics Acquired . | . . . Parts Built . | . . . Authchips . | . . . Time . | . . . Total Part Build Rating . | . . . Part Studies Acquired . | . . . Parts Repaired . | . . . Time . | . . . Parts Recycled . | . . . Recycled Matter . | . . . Retrieved Matter . | . . . Retrieved Components . | . . . Parts Scanalyzed . | . . . Part Schematics Acquired . | . . . Parts Damaged . | . . . Bothacking | -11 -10 -10 ------------ Run | Yrd Mat Sub Used RIF Installer . | . . . Robots Hacked . | . . . Non-combat . | . . . Combat . | . . . Robot Hacks Applied . | . . . Relay Couplers Released . | . . . Fabnet Peak Effective % . | . . . Robots Rewired . | . . . Allies Hacked . | . . . Hacks Repelled . | . . . Allies | -11 -10 -10 -------- Run | Yrd Mat Sub Total Allies . | . . . Largest Group . | . . . Highest-Rated Group . | . . . Highest-Rated Ally . | . . . Total Orders . | . . . Ally Attacks . | . . . Total Damage . | . . . Kills . | . . . Allies Corrupted . | . . . Allies Melted . | . . . Intel | -11 -10 -10 ------- Run | Yrd Mat Sub Active Infowar (turns) . | . . . Robot Analysis Total . | . . . Derelict Logs Recovered 2 | . . 2 Drone Launches . | . . . Drone Recoveries . | . . . Exploration | -11 -10 -10 ------------- Run | Yrd Mat Sub Turns Passed 2077 | 905 980 192 Spaces Moved 638 | 107 420 111 Core 17 | 14 . 3 Treads . | . . . Legs 621 | 93 420 108 Wheels . | . . . Hover . | . . . Flight . | . . . Fastest Speed 50 | 50 120 120 Average Speed 120 | 110 121 125 Slowest Speed 200 | 120 190 200 Overloaded Moves . | . . . Propulsion Burnouts . | . . . Robots Hopped . | . . . Potential Cave-ins . | . . . Cave-ins Triggered . | . . . Exploration Rate (%) 24 | 5 56 11 Regions Visited 2 Branch Regions 1 Pre-discovered Areas 2 | . . 2 Known Exits Taken . | . . . Unknown Exits Taken 2 | 1 1 . Scrap Searched . | . . . Spaces Dug . | . . . Terrain Destroyed . | . . . Melee . | . . . Projectile . | . . . AOE . | . . . Terrain Rammed . | . . . Walls Destroyed . | . . . Machines Disabled . | . . . Actions | -11 -10 -10 --------- Run | Yrd Mat Sub Total 1822 | 881 806 135 Wait 1085 | 758 326 1 Move 636 | 106 419 111 Hop . | . . . Pick Up 14 | 6 8 . Fast Attach . | . . . Attach 10 | 5 5 . Detach . | . . . Swap 2 | . 1 1 Drop 5 | . 4 1 Fire 68 | 6 43 19 Melee . | . . . Ram 2 | . . 2 Kick . | . . . Crush . | . . . Escape Stasis . | . . . Rewire . | . . . Trap . | . . . Miscellaneous . | . . . Route ------- -11/Scrapyard -10/Materials (discovered 3 exits: [*Mat] / [*Min] / [*Sub]) -10/Subcaves (discovered 1 exit: [*Rec]) History --------- Turn | Location | Event 8 | -11/Scrapyard | Discovered new exit (range 15) 906 | -11/Scrapyard | Entered Materials 907 | -10/Materials | Build established: Mutant 1335 | -10/Materials | Discovered new exit (range 11) 1402 | -10/Materials | Discovered new exit (range 15) 1470 | -10/Materials | Core integrity fell below 50% 1861 | -10/Materials | Discovered new exit (range 6) 1886 | -10/Materials | Entered Subcaves 1887 | -10/Subcaves | Approached by a straggling Scientist 1902 | -10/Subcaves | Learned location of Mines (-8) 1966 | -10/Subcaves | Discovered new exit (range 11) 2048 | -10/Subcaves | Core integrity fell below 20% 2078 | -10/Subcaves | Destroyed by Z8-OBD(R) with Subdweller Beam Cannon Last Messages --------------- S-10 Pest knocked back. Flight Unit fries itself beyond repair. 1X-L5A(c): "I think it's somewhere east of here" Machine disabled. Flight Unit fries itself beyond repair. S-10 Pest knocked back. Subatomizers dissect the Lgt. Assault Rifle. Lgt. Cannon destroyed. S-10 Pest destroyed. Subatomizers dissect the Lgt. Assault Rifle. Dropped Lgt. Ion Engine. Subatomizers dissect the Lgt. Ion Engine. Subatomizers dissect the Lgt. Ion Engine, destroying it. 1X-L5A(c): "I think it's somewhere east of here" Aluminum Leg destroyed. Lgt. Cannon destroyed. Slammed into Z8-OBD(R). Destabilizing: Core damaged (-7). Slammed into Z8-OBD(R). Map ----- +----------------------------------------------------+ | ??????????? ??? #????????????????????????????? | | ??????????? ??? #????????????????????????????? | | ?????????## #?? #????????????????????????????? | | ?????????# #? #????????????????????????????? | | ?????????# ## #????????????????????????????? | | ??????#### ##???????????????????????????? | | ?????## #???????????????????????????? | | ?????# #???????????????????????????? | | ?????# #???????????????????????????? | | ?????# ##???????????????????????????? | | ?????# ##????????????????????????????? | | ?????## #?????????????????????????????? | | ??????# ### ####?????????????????????????????? | | ??????# #?# #???????????????????????????????? | | ??????# #?# ##???????????????????????????????? | | ??????## #?# ?????????####???????????????????? | | ??????# ##?# ##???????? #####???????????????? | | ??????# #??# ?##?#???? ????????????????? | | ??????# #### ## # ???? ?????????????????? | | ??????# ## #?### #??????????????????? | | ?????## ### # ### ##?????????????????? | | ?????# ### #?# #####?????????????? | | ?????# ##### ### #? % #?????????????? | | ?????# ## ### ????????????????? | | ?????# ## % #???????????????????? | | ?????## @ % ##??????????????????? | | ??????# c R % #??????????????????? | | ??????# ### #?????????????????? | | ??????# ##### #????????????????? | | ??????# # # #### #???????????????? | | ??????# #??# #???????????????? | | ??????# ##??## ### #???????????????? | | ?????## # #???######??# #???????????????? | | ?????# #### #???????????? #???????????????? | | ?????## #?## ##????????????? #??????????????? | | ??????## ### #??????????????? #??????????????? | | ???????#### ##???????????????#??????????????? | | ??????????# ## ##?????????????????????????????? | | ?????????# ### ##????????????????????????????? | | ?????????# ##?# ##???????????????????????????? | | ?????????# #??## ##??????????????????????????? | | ????????## ???### ##?????????????????????????? | | ??????### ??## #?????????????????????????? | | ?????# ## #?????????????????????????? | | ??????#" ##???? "#??????????????????? | | ????? ### "#??????????????????? | | ??????#" %[ % ""#??????????????????? | | ??????# % <#?????????????????? | | ??????# # %% ""##?????????????????? | | ?????? ######### "#??????????????????? | +----------------------------------------------------+ Best States ------------- Heat Dissipation 25 Energy Generation 10 Energy Capacity 250 Matter Stores 300 Matter Capacity 300 Sight Range 16 Terrain Scan Density 10 Evasion (%) 55 Item Schematics ----------------- None Robot Schematics ------------------ None Fabricated ------------ Nothing Repaired ---------- Nothing Studied --------- None Alien Tech Used ----------------- None Achievements -------------- None Challenges ------------ None Game ------ Seed ClaymoresSalvageShovel Manual? 0 Play Time 00:08:38 Cumulative 17.1 hours Start 2026.04.19 @ 21:46:35 End 2026.04.19 @ 22:54:19 Sessions 3 Manual Loads 0 Difficulty Rogue Special Mode None Game No. 59 Rogue 59 Adventurer 0 Explorer 0 Win Type - Total 0 Types 0/0/0/0/0/0/0/0/0/0 Lore% 7 Gallery% 15 Achievement% 14 Wizard Run 0 Options --------- Layout 1 ASCII 0 Keyboard 0 Movement Arrows Keybinds 0 Fullscreen 1 Font 24/Smallcaps Map View 50x35 Zoom Use 0% Tactical HUD 0 Map Filters NONE Filters NONE Steam 1 RUN: 16d8729c-de09-47b3-afb8-f1b5158ffc5c